Cogmind - Beta 13 @@@ ROGUE MODE // 2024.02.23 @ 00:00:34 Player: Minty Result: Self-destructed Performance ------------- Evolutions (2) 1000 Regions Visited (7) 1400 Robots Destroyed (69) 345 Value Destroyed (1493) 1493 Prototype IDs (29) 580 Alien Tech Used (0) 0 Bonus (169) 169 TOTAL SCORE: 4987 Bonus ------- High Alert Combat Kills 62 Follower Combat Kills 107 Cogmind --------- Core Integrity 17/550 Matter 222/300 Energy 100/100 System Corruption 0% Temperature Cool (0) Movement Core (50) Location -8/Materials Parts ------- > --- POWER (1) -------- (None) > --- PROPULSION (2) --- (None) > --- UTILITY (6) ------ Utility Shielding > --- WEAPON (2) ------- (None) > --- INVENTORY (5) ---- Improved Signal Interpreter Improved Propulsion Shielding Makeshift System Restoration Module PSU Rigger Datajack Peak State ------------ > --- POWER ------------ Light Ion Engine > --- PROPULSION ------- Carbon-fiber Leg Carbon-fiber Leg > --- UTILITY ---------- Medium Storage Unit Improved Propulsion Shielding Utility Shielding Weapon Shielding Hacking Suite PSU Rigger > --- WEAPON ----------- Beamcaster Gauss Rifle > --- INVENTORY -------- Makeshift Power Source Improved Heat Sink Improved Light Armor Plating Makeshift System Restoration Module Datajack Mining Laser Heavy Mace Makeshift Sword [Rating: 35] Favorites ----------- Power Light Ion Engine Engine Light Ion Engine Propulsion Light Treads Treads Light Treads Leg Carbon-fiber Leg Wheel Compact Wheel Flight Unit Flight Unit Utility Hacking Suite Device PSU Rigger Storage Small Storage Unit Processor Signal Interpreter Hackware Hacking Suite Protection Utility Shielding Weapon Beamcaster Energy Gun Beamcaster Energy Cannon Ion Cannon Ballistic Gun Gauss Rifle Launcher Grenade Launcher Impact Weapon Heavy Mace Slashing Weapon Makeshift Sword Special Melee Weapon Datajack Build | -11 -10 -10 -9 -9 -9 -8 -8 ------- Run | Yrd Mat Min Mat Min Exi Min Mat Slots Evolved 4 | . . . 2 . . . 2 Power . | . . . . . . . . Propulsion . | . . . . . . . . Utility 4 | . . . 2 . . . 2 Weapon . | . . . . . . . . Parts Attached 48 | . 9 8 14 . 5 . 12 Power 5 | . 1 1 3 . . . . Engine 5 | . 1 1 3 . . . . Core . | . . . . . . . . Reactor . | . . . . . . . . Propulsion 8 | . 2 . 3 . 2 . 1 Treads 3 | . 2 . 1 . . . . Leg 2 | . . . . . 2 . . Wheel 2 | . . . 2 . . . . Hover . | . . . . . . . . Flight 1 | . . . . . . . 1 Utility 14 | . 2 1 5 . 1 . 5 Device 3 | . 1 . 1 . 1 . . Storage 1 | . . . 1 . . . . Processor 1 | . 1 . . . . . . Hackware 2 | . . . 1 . . . 1 Protection 7 | . . 1 2 . . . 4 Artifact . | . . . . . . . . Weapon 21 | . 4 6 3 . 2 . 6 Energy Gun 6 | . 1 2 1 . . . 2 Energy Cannon 1 | . . 1 . . . . . Ballistic Gun 3 | . . . . . . . 3 Ballistic Cannon . | . . . . . . . . Launcher 5 | . 2 2 1 . . . . Special Weapon . | . . . . . . . . Impact Weapon 2 | . . 1 1 . . . . Slashing Weapon 2 | . . . . . 1 . 1 Piercing Weapon . | . . . . . . . . Special Melee Weapon 2 | . 1 . . . 1 . . Unidentified Prototypes . | . . . . . . . . Parts Lost 16 | . . . 7 . . . 9 Power 3 | . . . 2 . . . 1 Propulsion 5 | . . . 2 . . . 3 Utility 4 | . . . 1 . . . 3 Weapon 4 | . . . 2 . . . 2 Highest Loss Streak 7 | . . . 6 . . . 7 To Critical Strikes . | . . . . . . . . Average Slot Usage (%) 96 | . 97 100 90 100 99 100 86 Engine 11 | . 14 14 10 11 11 11 6 Treads 10 | . 11 28 16 . . . . Leg 8 | . 16 . . . 12 22 15 Wheel 4 | . . . 1 22 9 . . Device 3 | . 5 . 5 . 2 11 1 Storage 11 | . 14 14 11 11 11 11 8 Processor 1 | . 6 . . . . . . Hackware 7 | . . . 11 11 11 11 13 Protection 14 | . . 13 12 22 19 11 25 Energy Gun 9 | . 8 8 9 11 11 11 6 Energy Cannon 3 | . . 13 6 . . . . Ballistic Gun 2 | . 8 . . . . . 8 Launcher 1 | . 8 . . . . . . Impact Weapon 3 | . . 5 5 11 . . . Slashing Weapon 1 | . . . . . 6 11 . Special Melee Weapon 1 | . 2 . . . 3 . . Naked Turns . | . . . . . . . . Heaviest Build 31 | 11 16 28 31 25 25 23 28 Greatest Support 40 | 20 40 40 40 26 30 30 30 Greatest Overweight (x) 4 | . . . 4 . 1 . 3 Average Overweight (x) . | . . . . . . . . Largest Inventory Capacity 10 | . 8 8 10 10 10 10 10 Average Capacity 8 | . 8 8 8 10 10 10 9 Most Carried 10 | . 8 8 9 9 10 10 10 Average Carried 8 | . 7 7 7 9 9 9 9 Final Capacity 10 | 8 8 8 10 10 10 10 5 Final Carried 10 | 6 8 8 9 9 10 10 5 Class Distribution -------------------- 54% | Mutant 44% | Scavenger-Mutant Dominant Class ---------------- Mutant | -10/Materials Mutant | -10/Mines Mutant | -9/Materials Scavenger-Mutant | -9/Mines Scavenger-Mutant | -9/Exiles Scavenger-Mutant | -8/Mines Scavenger-Mutant | -8/Materials Resources | -11 -10 -10 -9 -9 -9 -8 -8 ----------- Run | Yrd Mat Min Mat Min Exi Min Mat Matter Collected 858 | 200 119 131 147 12 55 15 179 Remotely . | . . . . . . . . Salvage Created 2216 | . 498 228 565 195 216 81 433 Parts 105 | . 24 11 34 2 8 3 23 Haulers Intercepted . | . . . . . . . . Recyclers Shooed 2 | . 2 . . . . . . Parts Field Recycled . | . . . . . . . . Retrieved Matter . | . . . . . . . . Parts Self-Destructed . | . . . . . . . . Prevented . | . . . . . . . . Kills | -11 -10 -10 -9 -9 -9 -8 -8 ------- Run | Yrd Mat Min Mat Min Exi Min Mat Combat Hostiles Destroyed 45 | . 17 6 13 . . . 9 Guns 24 | . 10 1 4 . . . 9 Cannons 5 | . . 2 3 . . . . AOE 15 | . 7 3 5 . . . . Classes Destroyed 11 | . 5 2 2 . . . 2 Worker 9 | . 2 . 3 3 . . 1 Builder 3 | . 1 . 1 1 . . . Tunneler 2 | . . 1 . 1 . . . Recycler 5 | . . 1 2 1 . 1 . Mechanic 1 | . . . 1 . . . . Operator 1 | . . . . . . . 1 Watcher 3 | . 1 . 1 . . . 1 Swarmer 18 | . 6 3 6 . . . 3 Grunt 22 | . 11 3 3 . . . 5 Duelist 1 | . . . . . . . 1 Sentry 4 | . . . 4 . . . . Best Kill Streak 10 | . 10 3 10 4 . 1 4 Combat Bots Only 7 | . 7 3 7 . . . 3 Max Kills in Single Turn 3 | . 3 2 3 1 . 1 2 Gunslinging 1 | . 1 . . . . . . Exploded 2 | . 2 2 2 . . . . Melee . | . . . . . . . . Uniques/NPCs Destroyed . | . . . . . . . . Combat | -11 -10 -10 -9 -9 -9 -8 -8 -------- Run | Yrd Mat Min Mat Min Exi Min Mat Hostile Shots Fired 346 | . 67 31 99 . . 2 147 Missed 107 | . 25 12 30 . . 2 38 Damage Taken 3196 | . 476 303 883 . . 22 1512 Core 882 | . 57 82 188 . . 22 533 Absorbed by Shields . | . . . . . . . . Redirected to Shielding 139 | . . . 4 . . . 135 Regen/Repaired (Parts) 75 | . . . . . . . 75 Core Remaining (%) 63 | 100 . 44 . . . 47 . Volleys Fired 143 | . 57 16 25 1 . . 44 Largest 2 | . 2 2 2 1 . . 2 Hottest 135 | . 80 135 135 75 . . 103 Shots Fired 218 | . 86 25 27 1 . . 79 Gun 176 | . 70 7 19 1 . . 79 Cannon 21 | . . 16 5 . . . . Launcher 21 | . 16 2 3 . . . . Special . | . . . . . . . . Kinetic 83 | . 36 . . . . . 47 Thermal 114 | . 34 23 24 1 . . 32 Explosive 21 | . 16 2 3 . . . . Electromagnetic . | . . . . . . . . Robot Hit Streak 10 | . 8 9 10 . . . 10 Robot Miss Streak 9 | . 3 3 6 . . . 9 Penetration Max 1 | . . . . . . . 1 Secondary Targets 2 | . 1 . . . . . 1 Max Gunslinging Chain 1 | . 1 . . . . . 1 Shots Hit Robots 177 | . 54 17 27 6 24 4 45 Core Hits 89 | . 35 10 21 2 4 . 17 Critical Kills . | . . . . . . . . Critical Parts Destroyed 6 | . 2 . 2 1 . . 1 Critical Strikes 11 | . 3 1 3 1 1 . 2 Burn 4 | . 1 1 1 . . . 1 Destroy 3 | . 2 . . . . . 1 Smash 3 | . . . 2 1 . . . Sever 1 | . . . . . 1 . . Melee Attacks 55 | . 2 2 14 6 24 4 3 Impact 22 | . . 2 14 6 . . . Slashing 17 | . . . . . 10 4 3 Piercing . | . . . . . . . . Sneak Attacks 29 | . . 2 5 6 13 3 . Combat Hostiles 13 | . . . . . 13 . . Follow-up Attacks . | . . . . . . . . Damage Inflicted 5703 | . 1119 666 1416 528 757 249 968 Guns 1715 | . 536 85 198 . . . 896 Cannons 334 | . . 232 102 . . . . Explosions 1280 | . 583 204 493 . . . . Melee 2317 | . . 127 623 528 757 249 33 Ramming 57 | . . 18 . . . . 39 Kinetic 814 | . 248 . . . . . 566 Thermal 1235 | . 288 317 300 . . . 330 Explosive 1280 | . 583 204 493 . . . . Electromagnetic . | . . . . . . . . Impact 1278 | . . 127 623 528 . . . Slashing 1039 | . . . . . 757 249 33 Piercing . | . . . . . . . . Highest Corruption . | . . . . . . . . Average Corruption . | . . . . . . . . Corruption Purged . | . . . . . . . . Corruption Blocked . | . . . . . . . . Overload Shots . | . . . . . . . . Overflow Damage 801 | . . 35 231 264 168 103 . Projectiles . | . . . . . . . . Explosions 29 | . . . 29 . . . . Melee 772 | . . 35 202 264 168 103 . Knockbacks 6 | . . 1 4 1 . . . Impact 6 | . . 1 4 1 . . . Kinetic . | . . . . . . . . Secondary . | . . . . . . . . Self-Inflicted Damage 220 | . 30 32 142 . . . 16 Shots 6 | . 2 1 3 . . . . Rammed 10 | . . 6 . . . . 4 Targets Rammed 11 | . . 6 . . . . 5 Kicked 1 | . . . . . . . 1 Crushed . | . . . . . . . . Highest Temperature 344 | . 134 344 328 34 . . 206 Average Temperature 80 | . 45 118 114 21 . . 58 Received Heat Transfer 1152 | . 204 129 171 . . . 648 Effects 1 | . . . 1 . . . . Energy Bleed 1 | . . . 1 . . . . Siege Activations . | . . . . . . . . Robots Corrupted . | . . . . . . . . Combat Hostiles . | . . . . . . . . Parts Fried 7 | . . . 2 5 . . . Impact Corruptions 18 | . . 1 9 8 . . . Robots Melted . | . . . . . . . . Combat Hostiles . | . . . . . . . . Parts Melted 4 | . 1 . 2 . . . 1 Heat Transferred 2812 | . 925 592 555 . . . 740 Parts Sabotaged . | . . . . . . . . Parts Stolen . | . . . . . . . . Parts Stripped . | . . . . . . . . Power Chain Reactions . | . . . . . . . . Alert | -11 -10 -10 -9 -9 -9 -8 -8 ------- Run | Yrd Mat Min Mat Min Exi Min Mat Peak Influence 575 | . 575 262 459 188 . 69 217 Initial 160 | . . 160 59 127 . . 26 Average 196 | . 324 174 226 166 . 57 114 Maximum Alert Level 2 | . 2 1 2 . . . 1 Low Security (%) 60 | . 28 61 45 100 . 100 67 Level 1 29 | . 25 38 51 . . . 32 Level 2 10 | . 46 . 2 . . . . Level 3 . | . . . . . . . . Level 4 . | . . . . . . . . Level 5 . | . . . . . . . . High Security . | . . . . . . . . Max Security . | . . . . . . . . Squads Dispatched 19 | . 8 1 3 . . . 7 Investigation 12 | . 6 1 2 . . . 3 Extermination . | . . . . . . . . Reinforcement 7 | . 2 . 1 . . . 4 Assault . | . . . . . . . . Garrison . | . . . . . . . . Intercept . | . . . . . . . . Searches Triggered . | . . . . . . . . Construction Impeded 1 | . . . . . . . 1 Haulers Reinforced . | . . . . . . . . Active Scanning Responses . | . . . . . . . . Cargo Convoy Interrupts . | . . . . . . . . Stealth | -11 -10 -10 -9 -9 -9 -8 -8 --------- Run | Yrd Mat Min Mat Min Exi Min Mat Distress Signals 10 | . 3 . 2 . . . 5 Communications Jammed . | . . . . . . . . Distress Signals . | . . . . . . . . Times Spotted 78 | . 22 6 24 . . 3 23 Peak Tracking Total 10 | . 5 3 10 . . 3 10 Tactical Retreats 5 | . 2 . 1 . . . 2 Traps | -11 -10 -10 -9 -9 -9 -8 -8 ------- Run | Yrd Mat Min Mat Min Exi Min Mat Traps Triggered 3 | . 2 1 . . . . . Indirectly . | . . . . . . . . Trap Hack Attempts 2 | . 2 . . . . . . Triggered . | . . . . . . . . Disarmed . | . . . . . . . . Reprogrammed 1 | . 1 . . . . . . Reused . | . . . . . . . . Traps Extracted . | . . . . . . . . Installed . | . . . . . . . . Triggered . | . . . . . . . . Objects Rigged 6 | . . . . . 1 4 1 Exploded 2 | . . . . . . . 2 Machines | -11 -10 -10 -9 -9 -9 -8 -8 ---------- Run | Yrd Mat Min Mat Min Exi Min Mat Machines Disabled 8 | . . 1 3 1 . . 3 Max in Single Turn 1 | . . 1 1 1 . . 1 Machines Repaired . | . . . . . . . . Machines Dismantled . | . . . . . . . . Machines Sabotaged . | . . . . . . . . Overloaded Fab Kills . | . . . . . . . . Hacking | -11 -10 -10 -9 -9 -9 -8 -8 --------- Run | Yrd Mat Min Mat Min Exi Min Mat Machines Accessed 20 | . 6 2 5 1 3 . 3 Terminals 11 | . 4 . 4 1 . . 2 Fabricators . | . . . . . . . . Repair Stations 1 | . . . . . . . 1 Recycling Units 2 | . 2 . . . . . . Scanalyzers 1 | . . . 1 . . . . Garrison Access . | . . . . . . . . Total Hacks 85 | . 25 2 28 2 10 . 18 Successful 61 | . 14 2 21 2 10 . 12 Failed 24 | . 11 . 7 . . . 6 Catastrophic 6 | . 4 . 1 . . . 1 Database Lockouts . | . . . . . . . . Manual 24 | . 6 . 10 2 1 . 5 Terminals 54 | . 15 . 22 2 . . 15 Fabricators . | . . . . . . . . Repair Stations 3 | . . . . . . . 3 Recycling Units 10 | . 10 . . . . . . Scanalyzers 6 | . . . 6 . . . . Garrison Access . | . . . . . . . . Terminal Hacks 38 | . 5 2 11 2 10 . 8 Record 9 | . . . . . 9 . . Prototype ID Bank 3 | . 1 . 1 . . . 1 Open Door 2 | . . 2 . . . . . Level Access Points 1 | . . . 1 . . . . Branch Access Points 1 | . . . 1 . . . . Alert Level 3 | . 1 . 1 . . . 1 Unreport Threat 2 | . . . . . . . 2 Locate Traps 2 | . . . 2 . . . . Dispatch Records 2 | . . . . 1 . . 1 Security Status 1 | . 1 . . . . . . Patrol Status 2 | . 1 . 1 . . . . Transport Status 1 | . . . . . . . 1 Recall Investigation 2 | . . . 2 . . . . Recall Reinforcements 1 | . . . 1 . . . . Hauler Manifests 1 | . . . 1 . . . . Registered Components 1 | . 1 . . . . . . Zone Layout 3 | . . . . 1 . . 2 Derelict Proto ID Bank 1 | . . . . . 1 . . Fabricator Hacks . | . . . . . . . . Repair Station Hacks 2 | . . . . . . . 2 Scan Component 1 | . . . . . . . 1 Repair 1 | . . . . . . . 1 Recycling Unit Hacks 7 | . 7 . . . . . . Process 2 | . 2 . . . . . . Report Inventory 2 | . 2 . . . . . . Retrieve Matter 3 | . 3 . . . . . . Scanalyzer 5 | . . . 5 . . . . Insert Component 2 | . . . 2 . . . . Analyze 3 | . . . 3 . . . . Garrison Access Hacks . | . . . . . . . . Unauthorized Hacks 9 | . 2 . 5 . . . 2 Terminals 7 | . 1 . 4 . . . 2 Botnet 7 | . 1 . 4 . . . 2 Fabricators . | . . . . . . . . Repair Stations . | . . . . . . . . Recycling Units 1 | . 1 . . . . . . Mask 1 | . 1 . . . . . . Scanalyzers 1 | . . . 1 . . . . Extract 1 | . . . 1 . . . . Garrison Access . | . . . . . . . . Data Cores Recovered . | . . . . . . . . Used . | . . . . . . . . Hacking Detections 14 | . 6 . 5 1 . . 2 Full Trace Events 7 | . 4 . 1 . . . 2 Feedback Events . | . . . . . . . . Feedback Blocked . | . . . . . . . . Robot Schematics Acquired . | . . . . . . . . Robots Built . | . . . . . . . . Authchips . | . . . . . . . . Time . | . . . . . . . . Total Robot Build Rating . | . . . . . . . . Part Schematics Acquired 5 | . . . 5 . . . . Parts Built . | . . . . . . . . Authchips . | . . . . . . . . Time . | . . . . . . . . Total Part Build Rating . | . . . . . . . . Parts Repaired 1 | . . . . . . . 1 Time 50 | . . . . . . . 50 Parts Recycled . | . . . . . . . . Recycled Matter 91 | . 91 . . . . . . Retrieved Matter 301 | . 301 . . . . . . Retrieved Components . | . . . . . . . . Parts Scanalyzed 2 | . . . 2 . . . . Part Schematics Acquired 2 | . . . 2 . . . . Parts Damaged 1 | . . . 1 . . . . Bothacking | -11 -10 -10 -9 -9 -9 -8 -8 ------------ Run | Yrd Mat Min Mat Min Exi Min Mat Used RIF Installer . | . . . . . . . . Robots Hacked . | . . . . . . . . Non-combat . | . . . . . . . . Combat . | . . . . . . . . Robot Hacks Applied . | . . . . . . . . Relay Couplers Released . | . . . . . . . . Fabnet Peak Effective % . | . . . . . . . . Robots Rewired 4 | . . . . . 4 . . Allies Hacked . | . . . . . . . . Hacks Repelled . | . . . . . . . . Allies | -11 -10 -10 -9 -9 -9 -8 -8 -------- Run | Yrd Mat Min Mat Min Exi Min Mat Total Allies 4 | . . . . . 4 . . Largest Group 4 | . . . . . 4 4 3 Highest-Rated Group 58 | . . . . . 58 58 50 Highest-Rated Ally 21 | . . . . . 21 21 21 Total Orders . | . . . . . . . . Ally Attacks 19 | . . . . . . 10 9 Total Damage 399 | . . . . . . 247 152 Kills 3 | . . . . . . 3 . Allies Corrupted . | . . . . . . . . Allies Melted . | . . . . . . . . Intel | -11 -10 -10 -9 -9 -9 -8 -8 ------- Run | Yrd Mat Min Mat Min Exi Min Mat Robot Analysis Total . | . . . . . . . . Derelict Logs Recovered 2 | . . 1 . 1 . . . Drone Launches . | . . . . . . . . Drone Recoveries . | . . . . . . . . Exploration | -11 -10 -10 -9 -9 -9 -8 -8 ------------- Run | Yrd Mat Min Mat Min Exi Min Mat Turns Passed 3880 | . 668 777 627 413 640 255 500 Spaces Moved 2553 | 1 364 432 303 439 552 189 273 Core 41 | . . . 1 . . . 40 Treads 860 | . 152 432 276 . . . . Legs 879 | 1 212 . . . 276 189 201 Wheels 741 | . . . 26 439 276 . . Hover . | . . . . . . . . Flight 32 | . . . . . . . 32 Fastest Speed 40 | 120 120 160 90 90 90 120 40 Average Speed 123 | 120 136 160 161 90 105 120 102 Slowest Speed 250 | 120 160 160 250 90 190 120 200 Overloaded Moves . | . . . . . . . . Propulsion Burnouts . | . . . . . . . . Robots Hopped 1 | . . . . . . . 1 Cave-ins Triggered . | . . . . . . . . Exploration Rate (%) 51 | 2 65 66 28 89 91 47 23 Regions Visited 7 Branch Regions 4 Pre-discovered Areas 2 | . . 1 . . 1 . . Known Exits Taken 3 | . . 1 1 . . 1 . Unknown Exits Taken 4 | 1 1 . . 1 1 . . Scrap Searched 1 | . . . . 1 . . . Spaces Dug . | . . . . . . . . Terrain Destroyed 119 | . 75 17 15 12 . . . Melee . | . . . . . . . . Projectile 5 | . . 2 3 . . . . AOE 114 | . 75 15 12 12 . . . Terrain Rammed . | . . . . . . . . Walls Destroyed . | . . . . . . . . Machines Disabled . | . . . . . . . . Actions | -11 -10 -10 -9 -9 -9 -8 -8 --------- Run | Yrd Mat Min Mat Min Exi Min Mat Total 2996 | . 452 489 387 445 595 213 415 Wait 102 | . 4 8 15 . 4 15 56 Move 2544 | . 363 431 302 438 551 188 271 Hop 1 | . . . . . . . 1 Pick Up 35 | . 7 7 8 . 4 1 8 Fast Attach 21 | . 4 3 8 . 3 . 3 Attach 10 | . 2 . 4 . . . 4 Detach 8 | . 1 . 3 . . . 4 Swap 17 | . 3 5 2 . 2 . 5 Drop 41 | . 7 11 6 . 6 1 10 Fire 143 | . 57 16 25 1 . . 44 Melee 55 | . 2 2 14 6 24 4 3 Ram 4 | . . . . . . . 4 Kick 1 | . . . . . . . 1 Crush 6 | . . 6 . . . . . Escape Stasis . | . . . . . . . . Rewire . | . . . . . . . . Trap 8 | . 2 . . . 1 4 1 Miscellaneous . | . . . . . . . . Route ------- -11/Scrapyard -10/Materials (discovered 4 exits: *Mat x2 / *Min x2) -10/Mines -9/Materials (discovered 4 exits: Mat x3 / *Min) -9/Mines (discovered 2 exits: *Mat / *Exi) -9/Exiles -8/Mines -8/Materials History --------- Turn | Location | Event 1 | -11/Scrapyard | Discovered new exit (range 0) 1 | -11/Scrapyard | Entered Materials 32 | -10/Materials | Discovered new exit (range 14) 185 | -10/Materials | Discovered new exit (range 10) 265 | -10/Materials | Destroyed 7 combat bots 315 | -10/Materials | Build established: Mutant 322 | -10/Materials | Identified exit to Materials 501 | -10/Materials | Discovered exit to Materials (range 3) 572 | -10/Materials | Discovered new exit (range 16) 669 | -10/Materials | Entered Mines 675 | -10/Mines | Met a Derelict shopkeep closing up shop 760 | -10/Mines | Discovered exit to Materials (range 10) 1041 | -10/Mines | Core integrity fell below 50% 1079 | -10/Mines | Learned location of Storage (-7) 1205 | -10/Mines | Met a Derelict who couldn't figure out how to use a Trap Extractor 1446 | -10/Mines | Entered Materials 1446 | -9/Materials | Evolved 2 slots: Utility x2 1723 | -9/Materials | Identified exit to Materials 1723 | -9/Materials | Identified exit to Mines 1857 | -9/Materials | Lost 6 parts (1p2n1u2w) 1859 | -9/Materials | Destroyed 7 combat bots 2073 | -9/Materials | Entered Mines 2090 | -9/Mines | Learned Materials trap positions 2337 | -9/Mines | Build established: Scavenger-Mutant 2358 | -9/Mines | Discovered exit to Materials (range 3) 2483 | -9/Mines | Deemed a non-threat by the Exiles lab entrance 2483 | -9/Mines | Discovered new exit (range 5) 2486 | -9/Mines | Entered Exiles 2486 | -9/Exiles | Found Exiles lab destroyed 2733 | -9/Exiles | Learned location of Zion (-7) 2964 | -9/Exiles | Opened EX-Vault 2972 | -9/Exiles | Found PSU Rigger 3107 | -9/Exiles | Discovered new exit (range 10) 3126 | -9/Exiles | Entered Mines 3126 | -8/Mines | Accompanied by 4 allies 3167 | -8/Mines | Core integrity fell below 50% 3356 | -8/Mines | Discovered exit to Materials (range 12) 3381 | -8/Mines | Entered Materials 3381 | -8/Materials | Accompanied by 3 allies 3381 | -8/Materials | Evolved 2 slots: Utility x2 3382 | -8/Materials | Loaded intel: 22 trap records 3433 | -8/Materials | Lost 3 allies 3648 | -8/Materials | Repaired Beamcaster 3746 | -8/Materials | Met 7R-MNS 3756 | -8/Materials | 7R-MNS lamented failing the tripod run 3833 | -8/Materials | Core integrity fell below 50% 3849 | -8/Materials | Core integrity fell below 20% 3855 | -8/Materials | Lost 7 parts (1p2n2u2w) 3881 | -8/Materials | Self-destructed Last Messages --------------- 03814_ Core Shielding destroyed. 03815_ Critical hit (Burn: +37). 03817_ Carbon-fiber Leg destroyed. 03824_ System Shield destroyed. 03834_ Destroyed Flight Unit. 03834_ Penetrated by Slug. 03838_ Critical hit (Burn: +37). 03839_ Dropped Med. Storage Unit. 03839_ Knocked back. 03840_ Acquired 13 matter. 03850_ Acquired Flight Unit. 03850_ Critical hit (Burn: +37). 03854_ Acquired 55 matter. 03855_ K-01 Serf collects debris. 03864_ Flight Unit destroyed. 03868_ Slammed into S-10 Pest. 03870_ Slammed into K-01 Serf. 03870_ K-01 Serf destroyed. 03879_ Hacking Suite destroyed. 03879_ Slammed into S-10 Pest. Map ----- +----------------------------------------------------+ | ?^^??????????????# ########### # """ #??? | | ?????????????????# #?????????# # """ #??? | | ?????????????????# " " #?????????# !# """ #??? | | ?????????????????# "R" #?????????# =+ #??? | | ?????????????????# """ #?????????# !%#=[ //#??? | | ?????????????????#######?????????# # /!#??? | | ????????????????????????########## # #??? | | ????????????????????????# # [# #??? | | ????????????????????????# """ # =%##########??? | | ????????????????????????# """ ! # *#???????????? | | ????????????????????????# """ # *|#???????????? | | ????????????????????????# #=% #???????????? | | ?????????????????######## """ # / #???????????? | | ?????????????????# ## """ ! # ###########?? | | ?????????????????#= ## """ # ! # #?? | | ?????????????????# " ## #= # #?? | | ?????????????????# """ ##+#####+## %# ! #?? | | ?????????????????# """ # [=# #?? | | ?????????????????# """ + =%+ #?? | | ?????????????????# "" # *% =# """"" #?? | | ?????????????????# """ ########g## # """"" ??? | | ?????????????????# "" ## ==# # """""???? | | ?????????????????# """ ## """ # ########????? | | ?????????????????# " ## """ # #???????????? | | ?????????????????# ## """ # #???????????? | | ??????????????????#######@ # #???????????? | | ????????????????????????# s""" # #???????????? | | ????????????????????????# """ #####???????????? | | ????????????????????????# """ #???????????????? | | ????????????????????????# #???????????????? | | ????????????????????????##########???????????????? | | ?????????????????????????????????????????????????? | | ?????????????????????????????????????????????????? | | ?????????????????????????????????????????????????? | | ?????????????????????????????????????????????????? | | ?????????????????????????????????????????????????? | | ?????????????????????????????????????????????????? | | | | | | | | | | | | | | | | | | | | | | | | | | | +----------------------------------------------------+ Best States ------------- Heat Dissipation 31 Energy Generation 18 Energy Capacity 265 Matter Stores 300 Matter Capacity 300 Sight Range 16 Terrain Scan Density 10 Armor Coverage 150 Core Shielding 20 Propulsion Shielding 66 Utility Shielding 33 Weapon Shielding 33 Evasion (%) 62 Recoil Reduction 2 Particle Charging 15 Offensive Hacking 10 Defensive Hacking 10 Item Schematics ----------------- Particle Charger | -9/Materials | Scanalyzed Imp. Propulsion Shielding | -9/Materials | Scanalyzed Imp. Light Cannon | -9/Materials | Extracted Lgt. EM Pulse Cannon | -9/Materials | Extracted Hpw. Tractor Beam | -9/Materials | Extracted Robot Schematics ------------------ None Fabricated ------------ Nothing Alien Tech Used ----------------- None Achievements -------------- None Challenges ------------ None Game ------ Seed CloakDamperCalibrator Manual? 0 Play Time 00:25:54 Cumulative 671.2 hours Start 2024.02.22 @ 23:34:37 End 2024.02.23 @ 00:00:34 Sessions 1 Manual Loads 0 Difficulty Rogue Special Mode None Game No. 684 Rogue 409 Adventurer 123 Explorer 152 Win Type - Total 25 Types 19/0/4/1/0/0/0/1/0 Lore% 80 Gallery% 91 Achievement% 76 Wizard Run 0 Options --------- Layout 0 ASCII 0 Keyboard 1 Movement Numpad Keybinds 0 Fullscreen 2 Font 18/SmallcapsGlow Map View 76x50 Zoom Use 0% Tactical HUD 1 Map Filters NONE Filters NONE Steam 1 RUN: 49e1589c-4245-459a-8311-c9d1bc3d033b